fUSD/lending_fUSD_20260630
["ID","MTS","AMOUNT","RATE_DAILY","PERIOD"]
[426779914,1782822640000,-166.66,0.00010959,2]
[426779858,1782822640000,-151.0,0.00010827,2]
[426779856,1782822640000,-151.0,0.00010827,2]
[426779924,1782822640000,-44.18090588,0.00011439,2]
[426779919,1782822640000,-166.66,0.00011068,2]
[426779922,1782822640000,-166.66,0.00011288,2]
[426779925,1782822640000,160.19,0.00028995,30]
[426779920,1782822640000,-315.49,0.00011098,2]
[426779921,1782822640000,-166.66,0.00011178,2]
[426779923,1782822640000,-166.66,0.00011397,2]
[426779918,1782822640000,-685.23,0.0001103,2]
[426779916,1782822640000,-220.60334189,0.00010962,2]
[426779917,1782822640000,-315.49,0.0001103,2]
[426779915,1782822640000,-94.88665811,0.00010962,2]
[426779913,1782822640000,-226.78019304,0.00010895,2]
[426779866,1782822640000,-150.0,0.00010827,2]
[426779868,1782822640000,-153.0,0.00010827,2]
[426779872,1782822640000,-151.0,0.00010827,2]
[426779874,1782822640000,-150.0,0.00010827,2]
[426779870,1782822640000,-152.0,0.00010827,2]
[426779878,1782822640000,-254.80475082,0.00010862,2]
[426779896,1782822640000,-1.64765614,0.00010862,2]
[426779899,1782822640000,-211.29019304,0.00010862,2]
[426779901,1782822640000,-88.70980696,0.00010895,2]
[426779876,1782822640000,-153.0,0.00010827,2]
[426779928,1782822641000,150.97,0.00028207,30]
[426779950,1782822642000,-298.67146727,0.00011711,2]
[426779953,1782822642000,-500.0,0.00011711,2]
[426779951,1782822642000,-220.12439198,0.00011711,2]
[426779943,1782822642000,-311.19,9.86e-05,2]
[426779952,1782822642000,-500.0,0.00011711,2]
[426779929,1782822642000,154.47,0.00028044,30]
[426779948,1782822642000,-911.58842964,0.00011702,2]
[426779946,1782822642000,-131.40909412,0.00011439,2]
[426779945,1782822642000,-311.19,0.000101,2]
[426779942,1782822642000,-311.19,9.619e-05,2]
[426779960,1782822642000,-400.8634597,0.00011711,2]
[426779949,1782822642000,-5959.84887036,0.00011702,2]
[426779954,1782822642000,-231.22698755,0.00011711,2]
[426779947,1782822642000,-166.66,0.00011507,2]
[426779956,1782822642000,-186.54502374,0.00011711,2]
[426779957,1782822642000,-500.0,0.00011711,2]
[426779968,1782822642000,-374.83658851,0.00011802,2]
[426779966,1782822642000,-21718.48833216,0.00011802,2]
[426779967,1782822642000,-4621.1965797,0.00011802,2]
[426779965,1782822642000,-1030.81938992,0.000118,2]
[426779964,1782822642000,-400.0,0.000118,4]
[426779969,1782822642000,-1475.0,0.00011802,2]
[426779961,1782822642000,-354.4304118,0.00011712,2]
[426779958,1782822642000,-500.0,0.00011711,2]
[426779955,1782822642000,-500.0,0.00011711,2]
[426779959,1782822642000,-500.0,0.00011711,2]
[426779962,1782822642000,-3000.0,0.00011712,2]
[426779963,1782822642000,-1105.86950597,0.00011712,2]
[426779994,1782822643000,-619.24,0.00013698,2]
[426779992,1782822643000,-552.04895636,0.00013698,2]
[426779988,1782822643000,-7624.3594183,0.00013518,2]
[426779985,1782822643000,-31653.0005156,0.00013507,2]
[426780006,1782822643000,-151.0,0.00014247,2]
[426779987,1782822643000,-1135.7781526,0.00013518,2]
[426779991,1782822643000,-500.0,0.00013698,2]
[426779993,1782822643000,-500.0,0.00013698,2]
[426779989,1782822643000,-2526.2881476,0.00013526,2]
[426779986,1782822643000,-172.6135752,0.00013518,2]
[426780007,1782822643000,-151.0,0.00014247,2]
[426779990,1782822643000,-1030.81938992,0.00013633,2]
[426779984,1782822643000,-759.8448745,0.00013504,2]
[426779977,1782822643000,-894.0,0.0001261,2]
[426779980,1782822643000,-2202.0,0.0001303,5]
[426779978,1782822643000,-150.0,0.00012853,2]
[426779976,1782822643000,-893.0,0.0001261,2]
[426779979,1782822643000,-1030.81938992,0.000129,2]
[426779982,1782822643000,-1030.81938992,0.00013267,2]
[426779975,1782822643000,-151.0,0.0001261,2]
[426779973,1782822643000,-1030.81938992,0.00012167,2]
[426779983,1782822643000,-6411.7090236,0.00013498,2]
[426779974,1782822643000,-1030.81938992,0.00012533,2]
[426779971,1782822643000,-8294.64112543,0.00011802,2]
[426779972,1782822643000,-900.0,0.000119,4]
[426779970,1782822643000,150.97,0.00028822,30]
[426780008,1782822643000,-153.2943977,0.00014359,2]
[426779981,1782822643000,-175.59,0.00013073,2]
[426779995,1782822643000,-500.0,0.00013698,2]
[426780014,1782822643000,-1159.41525903,0.000145,2]
[426779996,1782822643000,-500.0,0.00013698,2]
[426780028,1782822643000,-195703.35781787,0.000146,2]
[426780027,1782822643000,-588.86,0.000146,2]
[426780026,1782822643000,-149137.44750504,0.000146,2]
[426780025,1782822643000,-2208.0,0.000146,5]
[426780024,1782822643000,-322.44350206,0.0001459,2]
[426780022,1782822643000,-153.2943977,0.00014552,2]
[426779998,1782822643000,-586.14956433,0.00013698,2]
[426780019,1782822643000,-458.42,0.00014504,2]
[426780010,1782822643000,-153.2943977,0.00014407,2]
[426780020,1782822643000,-150.99,0.00014504,2]
[426780021,1782822643000,-6454.25960932,0.00014544,2]
[426780015,1782822643000,-1774.72869015,0.000145,2]
[426780017,1782822643000,-153.2943977,0.00014503,2]
[426780023,1782822643000,-5254.0,0.00014575,2]
[426780016,1782822643000,-6454.25960934,0.000145,2]
[426780012,1782822643000,-200.0,0.00014483,2]
[426779999,1782822643000,-233.82,0.00013698,2]
[426779997,1782822643000,-211.21,0.00013698,2]
[426780000,1782822643000,-299.085,0.00013698,2]
[426780004,1782822643000,-330.00568746,0.00014167,2]
[426780003,1782822643000,-1030.81938992,0.00014,2]
[426780018,1782822643000,-603.06,0.00014504,2]
[426780005,1782822643000,-354.43041176,0.0001421,2]
[426780002,1782822643000,-2500.0,0.00013699,2]
[426780009,1782822643000,-1030.81938992,0.00014367,2]
[426780011,1782822643000,-153.2943977,0.00014455,2]
[426780013,1782822643000,-609.85293881,0.000145,2]
[426780001,1782822643000,-200.0,0.00013699,2]
[426780033,1782822644000,150.97,0.00025654,30]
[426780049,1782822646000,-19443.9161,0.000146,2]
[426780048,1782822646000,-249596.16547295,0.000146,2]
[426780050,1782822646000,-923.25468907,0.000146,2]
[426780054,1782822646000,-71636.46433775,0.000146,2]
[426780052,1782822646000,-1219.19352263,0.000146,2]
[426780053,1782822646000,-2356.0,0.000146,2]
[426780051,1782822646000,-1473.33721193,0.000146,2]
[426780059,1782822671000,153.297252,0.00026667,120]
[426780058,1782822671000,153.297252,0.0002,120]
[426780061,1782822690000,158.36,0.00027865,30]
[426780060,1782822690000,159.25,0.00028063,30]
[426780062,1782822698000,156.64,0.00028052,30]
[426780063,1782822699000,156.64,0.00029094,30]
[426780064,1782822719000,158.67,0.00028282,30]
[426780065,1782822721000,158.67,0.00028995,30]
[426780068,1782822756000,157.28,0.00027873,30]
[426780069,1782822765000,159.18,0.0002807,30]
[426780070,1782822777000,154.99,0.00028059,30]
[426780071,1782822790000,150.98,0.00028289,30]
[426780072,1782822791000,150.98,0.00028997,30]
[426780076,1782822825000,157.98,0.00027883,30]
[426780077,1782822833000,159.44,0.00028077,30]
[426780078,1782822842000,158.63,0.00027892,30]
[426780079,1782822853000,153.96,0.00028065,30]
[426780080,1782822862000,165.72,0.00028389,30]
[426780081,1782822863000,165.76,0.00029232,30]
[426780082,1782822904000,159.38,0.00028083,30]
[426780083,1782822905000,12000.0,0.00029021,30]
[426780084,1782822906000,154.6,0.00028072,30]
[426780085,1782822911000,158.23,0.000279,30]
[426780086,1782822912000,201.76,0.00030137,30]
[426780088,1782822922000,155.21,0.00028079,30]
[426780087,1782822922000,159.18,0.0002809,30]
[426780089,1782822940000,161.44,0.00028395,30]
[426780090,1782822941000,161.46,0.00029232,30]
[426780092,1782822946000,154.84,0.00028085,30]
[426780091,1782822946000,158.15,0.00027909,30]
[426780093,1782822972000,158.0,0.00028559,30]
[426780094,1782822973000,158.0,0.00029559,30]
[426780095,1782822978000,183.956703,0.0002,120]
[426780096,1782822984000,4590.0,0.0003,30]
[426780097,1782823000000,159.39,0.00028096,30]
[426780098,1782823011000,1845.28719711,0.00010929,3]
[426780099,1782823012000,163.46,0.00028242,30]
[426780100,1782823013000,163.46,0.00028836,30]
[426780101,1782823014000,150.89,0.00025571,30]
[426780102,1782823016000,150.89,0.0002694,30]
[426780103,1782823019000,154.76,0.00028091,30]
[426780104,1782823022000,5000.0,0.0003,30]
[426780105,1782823023000,158.09,0.00027917,30]
[426780106,1782823024000,400.0,0.000108,3]
[426780107,1782823026000,800.0,0.000109,3]
[426780109,1782823036000,201.0,0.00028559,30]
[426780110,1782823037000,201.0,0.00029559,30]
[426780111,1782823044000,162.89,0.00028543,30]
[426780112,1782823045000,152.71,0.00026223,30]
[426780113,1782823089000,154.71,0.00028098,30]
[426780114,1782823098000,158.36,0.00027926,30]
[426780115,1782823103000,156.0,0.00028559,30]
[426780116,1782823104000,156.0,0.00029559,30]
[426780117,1782823115000,164.91,0.00028548,30]
[426780122,1782823148000,534.0,0.00028557,30]
[426780123,1782823149000,534.0,0.00029557,30]
[426780124,1782823154000,163.74,0.00028552,30]
[426780125,1782823167000,154.96,0.00028104,30]
[426780126,1782823169000,158.3,0.00027934,30]
[426780128,1782823178000,158.09,0.00027943,30]
[426780127,1782823178000,154.9,0.0002811,30]
[426780129,1782823180000,162.17,0.00028557,30]
[426780130,1782823193000,607.0,0.00028557,30]
[426780131,1782823195000,607.0,0.00029557,30]
[426780133,1782823195000,154.71,0.00028117,30]
[426780132,1782823195000,158.3,0.0002795,30]
[426780134,1782823198000,162.49,0.00028562,30]
[426780135,1782823211000,154.9,0.00028122,30]
[426780136,1782823229000,150.16,0.00028566,30]
[426780137,1782823253000,153.56,0.0002857,30]
[426780138,1782823265000,177.0,0.00028557,30]
[426780139,1782823267000,177.0,0.00029557,30]
[426780140,1782823273000,220.906,0.00029995,120]
[426780141,1782823310000,158.0,0.00028557,30]
[426780142,1782823312000,158.0,0.00029557,30]
[426780143,1782823322000,178.95,0.00028794,30]
[426780144,1782823355000,779.0,0.00028557,30]
[426780145,1782823357000,779.0,0.00029557,30]
[426780146,1782823401000,167.33,0.00028797,30]
[426780148,1782823429000,180.0,0.0002856,30]
[426780149,1782823431000,180.0,0.0002956,30]
[426780150,1782823438000,161.18,0.00028799,30]
[426780151,1782823473000,182.0,0.0002856,30]
[426780152,1782823474000,182.0,0.0002956,30]
[426780154,1782823507000,150.73,0.00028802,30]
[426780155,1782823521000,986.0,0.0002856,30]
[426780156,1782823522000,986.0,0.0002956,30]
[426780157,1782823585000,187.89,0.00029232,30]
[426780158,1782823593000,167.0,0.0002856,30]
[426780159,1782823594000,167.0,0.0002956,30]
[426780162,1782823622000,700.0,0.000108,3]
[426780161,1782823622000,153.0,0.0003,30]
[426780163,1782823624000,1400.0,0.000109,3]
[426780164,1782823636000,252.0,0.0002856,30]
[426780165,1782823637000,252.0,0.0002956,30]
[426780166,1782823638000,176.98,0.00029232,30]
[426780167,1782823715000,166.74,0.00029232,30]
[426780169,1782823740000,2000.0,0.00029994,120]
[426780168,1782823740000,2000.0,0.00030136,30]
[426780172,1782823753000,-263.58251106,9.613e-05,2]
[426780174,1782823755000,-138.82251106,9.613e-05,2]
[426780173,1782823755000,-38.98748894,9.613e-05,2]
[426780175,1782823756000,-156.55967431,9.613e-05,2]
[426780176,1782823757000,-23.65781463,9.613e-05,2]
[426780177,1782823757000,-154.16218537,9.613e-05,2]
[426780179,1782823758000,-37.58312304,9.613e-05,2]
[426780178,1782823758000,-155.38781463,9.613e-05,2]
[426780180,1782823759000,-271.96687696,9.613e-05,2]
[426780181,1782823770000,300.0,0.0003013,120]
[426780185,1782823788000,150.24,0.00029232,30]
[426780186,1782823805000,300.0,0.0003013,30]
[426780188,1782823831000,-150.0,9.616e-05,2]
[426780189,1782823831000,-250.0,9.619e-05,2]
[426780190,1782823831000,-350.93756315,9.648e-05,2]
[426780192,1782823831000,-302.57,9.705e-05,2]
[426780191,1782823831000,-302.57,9.659e-05,2]
[426780235,1782823832000,-500.0,0.00010162,2]
[426780222,1782823832000,-307.09182605,0.00010162,2]
[426780253,1782823832000,-500.0,0.00010162,2]
[426780221,1782823832000,-500.0,0.00010162,2]
[426780224,1782823832000,-617.28187157,0.00010162,2]
[426780231,1782823832000,-500.0,0.00010162,2]
[426780240,1782823832000,-500.0,0.00010162,2]
[426780241,1782823832000,-457.99990693,0.00010162,2]
[426780239,1782823832000,-500.0,0.00010162,2]
[426780232,1782823832000,-500.0,0.00010162,2]
[426780242,1782823832000,-500.0,0.00010162,2]
[426780233,1782823832000,-500.0,0.00010162,2]
[426780230,1782823832000,-500.0,0.00010162,2]
[426780248,1782823832000,-500.0,0.00010162,2]
[426780237,1782823832000,-500.0,0.00010162,2]
[426780236,1782823832000,-500.0,0.00010162,2]
[426780238,1782823832000,-500.0,0.00010162,2]
[426780243,1782823832000,-384.47166789,0.00010162,2]
[426780249,1782823832000,-500.0,0.00010162,2]
[426780245,1782823832000,-500.0,0.00010162,2]
[426780247,1782823832000,-500.0,0.00010162,2]
[426780246,1782823832000,-500.0,0.00010162,2]
[426780226,1782823832000,-349.97722627,0.00010162,2]
[426780244,1782823832000,-500.0,0.00010162,2]
[426780252,1782823832000,-500.0,0.00010162,2]
[426780254,1782823832000,-500.0,0.00010162,2]
[426780255,1782823832000,-500.0,0.00010162,2]
[426780234,1782823832000,-500.0,0.00010162,2]
[426780228,1782823832000,-500.0,0.00010162,2]
[426780209,1782823832000,-309.55,9.998e-05,2]
[426780220,1782823832000,-254.60488018,0.00010162,2]
[426780193,1782823832000,-309.55,9.709e-05,2]
[426780196,1782823832000,-164.93,9.77e-05,2]
[426780194,1782823832000,-150.0,9.715e-05,2]
[426780195,1782823832000,-302.57,9.751e-05,2]
[426780205,1782823832000,-309.55,9.902e-05,2]
[426780203,1782823832000,-309.55,9.854e-05,2]
[426780201,1782823832000,-302.57,9.843e-05,2]
[426780199,1782823832000,-309.55,9.805e-05,2]
[426780198,1782823832000,-302.57,9.797e-05,2]
[426780202,1782823832000,-319.04,9.854e-05,2]
[426780204,1782823832000,-302.57,9.889e-05,2]
[426780197,1782823832000,-310.09,9.773e-05,2]
[426780200,1782823832000,-150.0,9.811e-05,2]
[426780229,1782823832000,-500.0,0.00010162,2]
[426780206,1782823832000,-156.0,9.908e-05,2]
[426780214,1782823832000,-309.55,0.00010094,2]
[426780215,1782823832000,-309.55,0.00010094,2]
[426780216,1782823832000,-413.49171194,0.00010119,2]
[426780217,1782823832000,-302.57,0.00010119,2]
[426780210,1782823832000,-302.57,0.00010027,2]
[426780208,1782823832000,-302.57,9.981e-05,2]
[426780211,1782823832000,-302.57,0.00010073,2]
[426780207,1782823832000,-302.57,9.935e-05,2]
[426780212,1782823832000,-310.09,0.00010094,2]
[426780218,1782823832000,-662.37978165,0.0001013,2]
[426780225,1782823832000,-500.0,0.00010162,2]
[426780219,1782823832000,-174.91,0.00010138,2]
[426780227,1782823832000,-500.0,0.00010162,2]
[426780213,1782823832000,-319.04,0.00010094,2]
[426780250,1782823832000,-500.0,0.00010162,2]
[426780291,1782823832000,-500.0,0.00010918,2]
[426780257,1782823832000,-500.0,0.00010162,2]
[426780287,1782823832000,-328.90436482,0.0001083,2]
[426780289,1782823832000,-426.67352467,0.00010918,2]
[426780284,1782823832000,-302.57,0.00010625,2]
[426780293,1782823832000,-314.46341712,0.00010918,2]
[426780302,1782823832000,-2804.18574758,0.0001092,2]
[426780294,1782823832000,-500.0,0.00010918,2]
[426780303,1782823832000,-66225.53728997,0.0001092,2]
[426780304,1782823832000,-3000.0,0.0001092,2]
[426780295,1782823832000,-367.93066618,0.00010918,2]
[426780296,1782823832000,-574.07791043,0.00010918,2]
[426780300,1782823832000,-500.0,0.00010918,2]
[426780299,1782823832000,-500.0,0.00010918,2]
[426780305,1782823832000,-1105.86950597,0.0001092,2]
[426780285,1782823832000,-3385.12,0.00010677,2]
[426780297,1782823832000,-500.0,0.00010918,2]
[426780298,1782823832000,-500.0,0.00010918,2]
[426780307,1782823832000,-380.84,0.00010937,2]
[426780308,1782823832000,-166.66,0.00010959,2]
[426780306,1782823832000,-3385.12,0.00010931,2]
[426780317,1782823832000,-152.83,0.00011233,2]
[426780314,1782823832000,-255.0,0.00011169,2]
[426780310,1782823832000,-150.0,0.00010959,2]
[426780312,1782823832000,-175.84951452,0.00010987,2]
[426780251,1782823832000,-500.0,0.00010162,2]
[426780315,1782823832000,-166.66,0.00011178,2]
[426780316,1782823832000,-3385.12,0.00011185,2]
[426780309,1782823832000,-150.0,0.00010959,2]
[426780311,1782823832000,-216.62538722,0.00010971,2]
[426780301,1782823832000,-500.0,0.00010918,2]
[426780286,1782823832000,-500.0,0.00010713,2]
[426780313,1782823832000,-166.66,0.00011068,2]
[426780288,1782823832000,-163.48541979,0.00010837,2]
[426780283,1782823832000,-302.57,0.00010579,2]
[426780266,1782823832000,-500.0,0.00010165,2]
[426780268,1782823832000,-302.57,0.00010211,2]
[426780265,1782823832000,-302.57,0.00010165,2]
[426780267,1782823832000,-3385.12,0.00010168,2]
[426780256,1782823832000,-500.0,0.00010162,2]
[426780259,1782823832000,-534.46226326,0.00010162,2]
[426780260,1782823832000,-534.46226326,0.00010162,2]
[426780264,1782823832000,-150.0,0.00010163,2]
[426780261,1782823832000,-500.0,0.00010162,2]
[426780263,1782823832000,-500.0,0.00010162,2]
[426780262,1782823832000,-534.46226326,0.00010162,2]
[426780270,1782823832000,-311.21,0.00010285,2]
[426780272,1782823832000,-302.57,0.00010349,2]
[426780258,1782823832000,-500.0,0.00010162,2]
[426780275,1782823832000,-500.0,0.00010439,2]
[426780282,1782823832000,-300.0,0.00010578,2]
[426780277,1782823832000,-302.57,0.00010487,2]
[426780292,1782823832000,-330.32426793,0.00010918,2]
[426780280,1782823832000,-193.0,0.00010574,2]
[426780290,1782823832000,-500.0,0.00010918,2]
[426780274,1782823832000,-3385.12,0.00010423,2]
[426780281,1782823832000,-164.93,0.00010576,2]
[426780279,1782823832000,-250.0,0.00010574,2]
[426780271,1782823832000,-302.57,0.00010303,2]
[426780269,1782823832000,-302.57,0.00010257,2]
[426780273,1782823832000,-302.57,0.00010395,2]
[426780276,1782823832000,-302.57,0.00010441,2]
[426780278,1782823832000,-302.57,0.00010533,2]
[426780324,1782823833000,-2027.27813359,0.00012091,2]
[426780323,1782823833000,-175.6,0.00011611,2]
[426780327,1782823833000,-6121.79685171,0.00012165,2]
[426780322,1782823833000,-166.66,0.00011507,2]
[426780330,1782823833000,-2027.27813351,0.00012403,2]
[426780318,1782823833000,-160.0,0.00011273,2]
[426780321,1782823833000,-166.66,0.00011397,2]
[426780320,1782823833000,-164.93,0.00011382,2]
[426780325,1782823833000,-14706.1782861,0.00012165,2]
[426780328,1782823833000,-1622.1340297,0.00012165,2]
[426780319,1782823833000,-166.66,0.00011288,2]
[426780326,1782823833000,-16840.53344779,0.00012165,2]
[426780329,1782823833000,-174.9,0.00012247,2]
[426780332,1782823833000,-284.0109381,0.00012775,2]
[426780340,1782823833000,-171.38035489,0.0001425,2]
[426780331,1782823833000,-2027.27813351,0.00012715,2]
[426780346,1782823833000,-10830.44280575,0.00014357,2]
[426780344,1782823833000,-2027.27813351,0.00014276,2]
[426780347,1782823833000,-1031.93125297,0.00014357,2]
[426780345,1782823833000,-5163.40768745,0.00014328,2]
[426780337,1782823833000,-2027.27813351,0.00013652,2]
[426780338,1782823833000,-200.0,0.00013699,2]
[426780342,1782823833000,-5163.40768751,0.00014257,2]
[426780336,1782823833000,-328.90436479,0.00013475,2]
[426780341,1782823833000,-171.38035489,0.0001425,2]
[426780334,1782823833000,-2027.27813351,0.00013027,2]
[426780333,1782823833000,-163.48541977,0.00012869,2]
[426780335,1782823833000,-2027.27813351,0.00013339,2]
[426780339,1782823833000,-2027.27813351,0.00013964,2]
[426780343,1782823833000,-2720.01553154,0.00014271,2]
[426780363,1782823838000,-3327.86911571,0.00014357,2]
[426780362,1782823838000,-309.57,0.000101,2]
[426780364,1782823838000,-8161.57488019,0.00014357,2]
[426780367,1782823838000,-2940.3431429,0.00014357,2]
[426780366,1782823838000,-448.30419999,0.00014357,2]
[426780368,1782823838000,-11207.62453301,0.00014357,2]
[426780365,1782823838000,-757.39,0.00014357,2]
[426780611,1782823840000,-720.19,0.00014504,2]
[426780613,1782823840000,-5208.03,0.00014504,2]
[426780615,1782823840000,-5163.40768745,0.00014543,2]
[426780621,1782823840000,-214.96233471,0.0001459,2]
[426780617,1782823840000,-29759.19793425,0.00014576,2]
[426780619,1782823840000,-2027.27813351,0.00014588,2]
[426780623,1782823840000,-500.0,0.00014599,2]
[426780629,1782823840000,-239.22,0.00014599,2]
[426780627,1782823840000,-500.0,0.00014599,2]
[426780643,1782823840000,-169.0,0.000146,2]
[426780645,1782823840000,-169.0,0.000146,2]
[426780648,1782823840000,-5163.40768745,0.00014614,2]
[426780607,1782823840000,-5177.51,0.00014504,2]
[426780625,1782823840000,-500.0,0.00014599,2]
[426780605,1782823840000,-809.92,0.00014504,2]
[426780635,1782823840000,-153.0,0.000146,2]
[426780600,1782823840000,-31587.91,0.00014504,2]
[426780604,1782823840000,-9549.79,0.00014504,2]
[426780602,1782823840000,-299.99,0.00014504,2]
[426780598,1782823840000,-9999.99,0.00014504,2]
[426780592,1782823840000,-2000.0,0.000145,2]
[426780594,1782823840000,-9999.99,0.00014504,2]
[426780590,1782823840000,-5163.40768745,0.00014471,2]
[426780588,1782823840000,-5163.40768745,0.000144,2]
[426780586,1782823840000,-8161.1866026,0.00014357,2]
[426780583,1782823840000,-172.6135754,0.00014357,2]
[426780584,1782823840000,-2080.8190416,0.00014357,2]
[426780581,1782823840000,-154765.5030115,0.00014357,2]
[426780579,1782823840000,-43743.55958289,0.00014357,2]
[426780557,1782823840000,-411.15336399,0.00014357,2]
[426780609,1782823840000,-4999.99,0.00014504,2]
[426780631,1782823840000,-874007.14250744,0.000146,2]
[426780596,1782823840000,-8611.21,0.00014504,2]
[426780641,1782823840000,-905.0,0.000146,2]
[426780707,1782823840000,-1300.40577654,0.00014829,2]
[426780697,1782823840000,-1322.91230409,0.00015,2]
[426780695,1782823840000,-708.87563447,0.00015,2]
[426780692,1782823840000,-209694.95239655,0.00015,2]
[426780700,1782823840000,-6130.5,0.00015,2]
[426780688,1782823840000,-318.23081038,0.000149,2]
[426780690,1782823840000,-214.96233471,0.0001499,2]
[426780686,1782823840000,-2027.27813351,0.000149,2]
[426780684,1782823840000,-908.68452118,0.000149,2]
[426780705,1782823840000,-3863.00191091,0.00014829,2]
[426780682,1782823840000,-700.0,0.000149,5]
[426780674,1782823840000,-1238.86944041,0.00014801,2]
[426780670,1782823840000,-2676.2571,0.00014775,2]
[426780668,1782823840000,-1977.96705716,0.00014775,2]
[426780680,1782823840000,-163.48541977,0.000149,2]
[426780709,1782823840000,-95670.79422346,0.00015,2]
[426780678,1782823840000,-161.48,0.000149,2]
[426780672,1782823840000,-3700.0,0.000148,5]
[426780646,1782823840000,-2200.0,0.000146,5]
[426780650,1782823840000,-200.0,0.00014616,2]
[426780653,1782823840000,-1765.0,0.00014633,5]
[426780652,1782823840000,-199.5,0.00014616,2]
[426780637,1782823840000,-151.0,0.000146,2]
[426780639,1782823840000,-913.0,0.000146,2]
[426780633,1782823840000,-151.0,0.000146,2]
[426780660,1782823840000,-2900.0,0.000147,5]
[426780662,1782823840000,-5163.40768745,0.00014757,2]
[426780666,1782823840000,-1322.2233517,0.00014775,2]
[426780664,1782823840000,-749.50935914,0.00014775,2]
[426780655,1782823840000,-1418.0,0.00014633,5]
[426780658,1782823840000,-5163.40768745,0.00014686,2]
[426780676,1782823840000,-200.0,0.00014879,2]
[426781004,1782823843000,-374.83658851,0.00015,2]
[426780999,1782823843000,-47798.50774828,0.00015,2]
[426780997,1782823843000,-2703.33115014,0.00015,2]
[426781006,1782823843000,-757.94650274,0.00015,2]
[426781051,1782823843000,-674.0,0.00015,2]
[426781082,1782823843000,-798.0147852,0.00015,2]
[426781001,1782823843000,-7625.8003797,0.00015,2]
[426781370,1782823846000,-894.0,0.00014339,2]
[426781377,1782823846000,-8461.235195,0.00015,2]
[426781383,1782823846000,-2086.47984954,0.00015,2]
[426781372,1782823846000,-5163.40768745,0.000149,2]
[426781375,1782823846000,-6309.42689645,0.00015,2]
[426781386,1782823846000,-8121.59246157,0.00015,2]
[426781388,1782823846000,-28302.45720356,0.00015,2]
[426781444,1782823846000,-491.06439782,0.00015,2]
[426781447,1782823846000,-1277.61,0.00015,2]
[426781379,1782823846000,-330.3491901,0.00015,2]
[426781381,1782823846000,-460198.97851099,0.00015,2]
[426782176,1782823862000,159.87,0.00029232,30]
[426782178,1782824126000,462.51529504,0.0003,120]
[426782181,1782824194000,172.76733894,0.0003,120]
[426782182,1782824214000,152.33491513,0.00029,120]
[426782184,1782824294000,158.0,0.00028554,30]
[426782185,1782824295000,158.0,0.00029554,30]
[426782186,1782824352000,180.0,0.00028554,30]
[426782187,1782824354000,180.0,0.00029554,30]
[426782188,1782824358000,150.0,0.000285,30]
[426782191,1782824419000,157.0,0.00028554,30]
[426782192,1782824420000,157.0,0.00029554,30]
[426782193,1782824458000,180.9337086,0.000273,30]
[426782194,1782824461000,481.0,0.00028554,30]
[426782195,1782824462000,481.0,0.00029554,30]
[426782196,1782824506000,546.0,0.00028554,30]
[426782197,1782824508000,546.0,0.00029554,30]
[426782198,1782824549000,150.0,0.000285,30]
[426782199,1782824578000,159.0,0.00028555,30]